fUSD/lending_fUSD_20260217
["ID","MTS","AMOUNT","RATE_DAILY","PERIOD"]
[405773927,1771294240280,-500.0,0.00017914,2]
[405773928,1771294240293,-500.0,0.00017914,2]
[405773929,1771294240307,-500.0,0.00017914,2]
[405773930,1771294240320,-500.0,0.00017914,2]
[405773931,1771294240334,-500.0,0.00017914,2]
[405773932,1771294240347,-500.0,0.00017914,2]
[405773933,1771294240359,-500.0,0.00017914,2]
[405773934,1771294240372,-233.0,0.00017914,2]
[405773935,1771294240384,-500.0,0.0001793,2]
[405773936,1771294240401,-466.0,0.0001793,2]
[405773937,1771294240414,-13815.73,0.0001796,2]
[405773938,1771294240427,-500.0,0.00017985,2]
[405773939,1771294240440,-466.0,0.00017985,2]
[405773940,1771294240453,-300.0,0.00017999,2]
[405773941,1771294240466,-666.0,0.00017999,2]
[405773942,1771294240479,-300.0,0.00017999,2]
[405773943,1771294240492,-772.26,0.00018,7]
[405773944,1771294240505,-502.0,0.00018021,2]
[405773945,1771294240517,-500.0,0.00018039,2]
[405773946,1771294240531,-466.0,0.00018039,2]
[405773947,1771294240544,-500.0,0.00018094,2]
[405773948,1771294240557,-466.0,0.00018094,2]
[405773949,1771294240569,-266.33885806,0.00018149,2]
[405773950,1771294240582,-466.0,0.00018149,2]
[405773951,1771294240595,-466.0,0.00018204,2]
[405773952,1771294240608,-466.0,0.00018259,2]
[405773953,1771294240621,-466.0,0.00018313,2]
[405773954,1771294240634,-168.0,0.00018337,2]
[405773955,1771294240647,-300.0,0.00018355,2]
[405773956,1771294240661,-666.0,0.00018355,2]
[405773957,1771294240673,-300.0,0.00018355,2]
[405773958,1771294240686,-466.0,0.00018368,2]
[405773959,1771294240699,-466.0,0.00018423,2]
[405773960,1771294240712,-466.0,0.00018478,2]
[405773961,1771294240725,-5530.0,0.000185,5]
[405773962,1771294240737,-466.0,0.00018532,2]
[405773963,1771294240749,-468.80031656,0.00018587,2]
[405773964,1771294240762,-500.0,0.00018736,2]
[405773965,1771294240775,-500.0,0.00018736,2]
[405773966,1771294240787,-500.0,0.00018736,2]
[405773967,1771294240799,-500.0,0.00018736,2]
[405773968,1771294240812,-540.0,0.00018736,2]
[405773969,1771294240824,-502.0,0.00018741,3]
[405773970,1771294240837,-1600.0,0.00018869,2]
[405773971,1771294240850,-1000.0,0.00019141,2]
[405773972,1771294240862,-502.0,0.00019462,4]
[405773973,1771294240874,-500.0,0.00019558,2]
[405773974,1771294240887,-500.0,0.00019558,2]
[405773975,1771294240899,-500.0,0.00019558,2]
[405773976,1771294240911,-193.0,0.00019558,2]
[405773977,1771294240923,-300.0,0.00019999,2]
[405773978,1771294240936,-502.75243677,0.00019999,2]
[405773979,1771294240948,-300.0,0.00019999,2]
[405773980,1771294240962,-360.45457926,0.0002,30]
[405773981,1771294240974,-360.45457926,0.0002,30]
[405773982,1771294240986,-150.22098376,0.0002,20]
[405773983,1771294240998,-502.0,0.00020183,4]
[405773984,1771294241011,-406.69052902,0.00020449,2]
[405773985,1771294241023,-504.52861774,0.00020559,60]
[405773986,1771294241034,-160.57318335,0.00020692,2]
[405773987,1771294241046,-300.0,0.00020899,2]
[405773988,1771294241059,-502.0,0.00020903,5]
[405773989,1771294241071,-300.0,0.00020999,2]
[405773990,1771294241083,-373.67913322,0.00021,5]
[405773991,1771294241095,-300.0,0.00021499,2]
[405773992,1771294241107,-502.0,0.00021624,6]
[405773993,1771294241119,-289.6844441,0.00021664,2]
[405773994,1771294241131,-325.08121142,0.00021851,2]
[405773995,1771294241143,-5000.0,0.00021918,2]
[405773996,1771294241155,-3043.88,0.00021918,2]
[405773997,1771294241168,-500.0,0.00021918,2]
[405773998,1771294241179,-458.0,0.00021918,2]
[405773999,1771294241190,-290.99134182,0.00021973,2]
[405774000,1771294241203,-509.85751715,0.00021973,2]
[405774001,1771294241214,-501.35605949,0.00021973,2]
[405774002,1771294241226,-500.0,0.00021973,2]
[405774003,1771294241237,-502.88998638,0.00021973,2]
[405774004,1771294241248,-500.0,0.00021973,2]
[405774005,1771294241261,-508.22453373,0.00021973,2]
[405774006,1771294241276,-503.2366262,0.00021973,2]
[405774007,1771294241287,-500.0,0.00021973,2]
[405774008,1771294241299,-500.0,0.00021973,2]
[405774009,1771294241312,-436.04334629,0.00021973,2]
[405774010,1771294241324,-310.16973746,0.00021973,2]
[405774011,1771294241336,-502.37992604,0.00021973,2]
[405774012,1771294241350,-500.0,0.00021973,2]
[405774013,1771294241362,-501.59728131,0.00021973,2]
[405774014,1771294241374,-504.66274009,0.00021973,2]
[405774015,1771294241385,-501.26419244,0.00021973,2]
[405774016,1771294241397,-500.0,0.00021973,2]
[405774017,1771294241409,-168.45138887,0.00021973,2]
[405774018,1771294241421,-504.49684223,0.00021973,2]
[405774019,1771294241432,-500.0,0.00021973,2]
[405774020,1771294241444,-501.78719611,0.00021973,2]
[405774021,1771294241456,-502.80271569,0.00021973,2]
[405774022,1771294241468,-588.14229004,0.00021973,2]
[405774023,1771294241480,-502.53760547,0.00021973,2]
[405774024,1771294241491,-500.0,0.00021973,2]
[405774025,1771294241503,-163.14629325,0.00021973,2]
[405774026,1771294241516,-500.0,0.00021973,2]
[405774027,1771294241528,-458.0,0.00021973,2]
[405774028,1771294241540,-238.6,0.00022,7]
[405774029,1771294241551,-315.07,0.00022,2]
[405774030,1771294241563,-204529.26769321,0.00022,2]
[405774031,1771294241581,-539.93551002,0.00022,2]
[405774032,1771294241600,-605.91046908,0.00022,2]
[405774033,1771294241683,-197319.34632769,0.00022,2]
[405774034,1771294241695,-571.52386176,0.00022028,2]
[405774035,1771294241708,-458.0,0.00022028,2]
[405774036,1771294241721,-458.0,0.00022082,2]
[405774037,1771294241732,-458.0,0.00022137,2]
[405774038,1771294241744,-458.0,0.00022192,2]
[405774039,1771294241756,-360.45457926,0.00022222,30]
[405774040,1771294241768,-458.0,0.00022247,2]
[405774041,1771294241779,-458.0,0.00022302,2]
[405774042,1771294241791,-502.0,0.00022345,6]
[405774043,1771294241803,-458.0,0.00022356,2]
[405774044,1771294241815,-458.0,0.00022411,2]
[405774045,1771294241827,-458.0,0.00022466,2]
[405774046,1771294241839,-1000.0,0.00022521,2]
[405774047,1771294241851,-1000.0,0.00022521,2]
[405774048,1771294241863,-213.36943428,0.00022521,2]
[405774049,1771294241875,-1000.0,0.00022521,2]
[405774050,1771294241888,-1000.0,0.00022521,2]
[405774051,1771294241900,-1000.0,0.00022521,2]
[405774052,1771294242484,-1000.0,0.00022521,2]
[405774053,1771294242516,-1000.0,0.00022521,2]
[405774054,1771294242535,-458.0,0.00022521,2]
[405774055,1771294242546,-458.0,0.00022576,2]
[405774056,1771294242556,-458.0,0.0002263,2]
[405774057,1771294242566,-458.0,0.00022685,2]
[405774058,1771294242576,-458.0,0.0002274,2]
[405774059,1771294242586,-458.0,0.00022795,2]
[405774060,1771294242595,-458.0,0.0002285,2]
[405774061,1771294242605,-458.0,0.00022904,2]
[405774062,1771294242616,-458.0,0.00022959,2]
[405774063,1771294242626,-160.0,0.00023,2]
[405774064,1771294242636,-300.43814259,0.00023,12]
[405774065,1771294242646,-458.0,0.00023014,2]
[405774066,1771294242656,-187.36614029,0.00023014,2]
[405774067,1771294242666,-150.0,0.00023014,2]
[405774068,1771294242676,-150.0,0.00023014,2]
[405774069,1771294242686,-502.0,0.00023066,7]
[405774070,1771294242695,-511.01261154,0.00023068,2]
[405774071,1771294242706,-1500.0,0.00023068,2]
[405774072,1771294242716,-1510.51189712,0.00023068,2]
[405774073,1771294242726,-746.96831808,0.00023068,2]
[405774074,1771294242735,-1500.0,0.00023068,2]
[405774075,1771294242745,-1500.0,0.00023068,2]
[405774076,1771294242755,-458.0,0.00023069,2]
[405774077,1771294242765,-150.0,0.00023069,2]
[405774078,1771294242774,-150.0,0.00023069,2]
[405774079,1771294242784,-458.0,0.00023123,2]
[405774080,1771294242795,-200.0,0.00023124,2]
[405774081,1771294242804,-200.0,0.00023124,2]
[405774082,1771294242814,-466.0,0.00023178,2]
[405774083,1771294242823,-402994.46,0.000232,2]
[405774084,1771294242833,-151.0,0.00023299,5]
[405774085,1771294242843,-151.0,0.00023299,5]
[405774086,1771294242854,-151.0,0.00023299,5]
[405774087,1771294242864,-151.0,0.00023299,5]
[405774088,1771294242873,-151.0,0.00023299,5]
[405774089,1771294242883,-151.0,0.00023299,5]
[405774090,1771294242892,-151.0,0.00023299,5]
[405774091,1771294242902,-151.0,0.00023299,5]
[405774092,1771294242912,-151.0,0.00023299,5]
[405774093,1771294242921,-151.0,0.00023299,5]
[405774094,1771294242931,-151.0,0.00023299,5]
[405774095,1771294242941,-151.0,0.00023299,5]
[405774096,1771294242951,-151.0,0.00023299,5]
[405774097,1771294242962,-151.0,0.00023299,5]
[405774098,1771294242972,-267.05598539,0.00023299,5]
[405774099,1771294242982,-2316.8,0.000233,14]
[405774100,1771294242992,-788.00311282,0.00023316,2]
[405774101,1771294243002,-658.35387756,0.00023616,2]
[405774102,1771294243014,-2000.0,0.00023616,2]
[405774103,1771294243024,-409.50775716,0.00023616,2]
[405774104,1771294243034,-160.57318335,0.00023648,2]
[405774105,1771294243043,-502.0,0.00023786,8]
[405774106,1771294243053,-2500.0,0.00024164,2]
[405774107,1771294243063,-1025.33394229,0.00024169,2]
[405774108,1771294243073,-238.6,0.000243,7]
[405774109,1771294243083,-170.88899038,0.00024386,2]
[405774110,1771294243093,-16400.5444896,0.00024421,2]
[405774111,1771294243104,-1094.1261757,0.00024421,2]
[405774112,1771294243113,-32850.4601,0.00024442,2]
[405774113,1771294243123,-1000.0,0.00024442,2]
[405774114,1771294243133,-360.45457926,0.00024444,30]
[405774115,1771294243143,-502.0,0.00024507,8]
[405774116,1771294243153,-118107.4465259,0.00024542,2]
[405774117,1771294243163,-170.88899038,0.00024628,2]
[405774118,1771294243173,-1000.0,0.00024658,2]
[405774119,1771294243182,-150.0,0.00024658,2]
[405774120,1771294243192,-2514.66080185,0.00024712,2]
[405774121,1771294243203,-235.55627713,0.00024731,2]
[405774122,1771294243212,-170.88899038,0.00024869,2]
[405774123,1771294243222,-402994.46,0.000249,2]
[405774124,1771294243232,-5590.75,0.00024901,2]
[405774125,1771294243243,-250.0,0.00024918,35]
[405774126,1771294243252,-250.0,0.00024918,35]
[405774127,1771294243265,-250.0,0.00024918,35]
[405774128,1771294243275,-250.0,0.00024918,35]
[405774129,1771294243286,-250.0,0.00024918,35]
[405774130,1771294243296,-250.0,0.00024918,35]
[405774131,1771294243315,-250.0,0.00024918,35]
[405774132,1771294243335,-250.0,0.00024918,35]
[405774133,1771294243346,-250.0,0.00024918,35]
[405774134,1771294243356,-250.0,0.00024918,35]
[405774135,1771294243367,-250.0,0.00024918,35]
[405774136,1771294243377,-359.0,0.00024918,35]
[405774137,1771294243387,-151.0,0.00024997,7]
[405774138,1771294243397,-124559.28771134,0.00025,30]
[405774139,1771294243408,-18500.57575157,0.00025,2]
[405774140,1771294243418,-540.0,0.00025,2]
[405774141,1771294243428,-611.79103186,0.00025,2]
[405774142,1771294243438,-3048.72998539,0.00025,2]
[405774143,1771294243447,-7135.9219492,0.00025,2]
[405774144,1771294243459,-167.56553321,0.00025,2]
[405774145,1771294243470,-171.26317317,0.00025,5]
[405774146,1771294243480,-531.0,0.00025,5]
[405774147,1771294243490,-500.0,0.00025,2]
[405774148,1771294243499,-173.53171403,0.00025,30]
[405774149,1771294243510,-160.0,0.00025,30]
[405774150,1771294243520,-200.0,0.00025,2]
[405774151,1771294243530,-250.0,0.00025,35]
[405774152,1771294243541,-250.0,0.00025,35]
[405774153,1771294243551,-250.0,0.00025,35]
[405774154,1771294243562,-250.0,0.00025,35]
[405774155,1771294243572,-250.0,0.00025,35]
[405774156,1771294243582,-250.0,0.00025,35]
[405774157,1771294243592,-365.0,0.00025,35]
[405774158,1771294243603,-151.0,0.00025,2]
[405774159,1771294243613,-250.0,0.00025082,35]
[405774160,1771294243623,-250.0,0.00025082,35]
[405774161,1771294243633,-250.0,0.00025082,35]
[405774162,1771294243643,-250.0,0.00025082,35]
[405774163,1771294243653,-243.0,0.00025082,35]
[405774164,1771294243664,-1275.0,0.00025119,2]
[405774165,1771294243680,-150.248,0.00025119,2]
[405774166,1771294243691,-502.0,0.00025228,9]
[405774167,1771294243702,-200.0,0.0002525,2]
[405774168,1771294243713,-150.0,0.00025304,2]
[405774169,1771294243725,-200.0,0.00025304,2]
[405774170,1771294243735,-250.0,0.00025304,2]
[405774171,1771294243746,-231.713,0.00025304,2]
[405774172,1771294243757,-197.764,0.00025304,2]
[405774173,1771294243768,-275.559,0.00025304,2]
[405774174,1771294243778,-160.03,0.00025304,2]
[405774175,1771294243789,-250.0,0.00025304,2]
[405774176,1771294243800,-192.151,0.00025304,2]
[405774177,1771294243810,-213.324,0.00025304,2]
[405774178,1771294243820,-250.0,0.00025304,2]
[405774179,1771294243831,-234.143,0.00025304,2]
[405774180,1771294243841,-174.0,0.00025304,2]
[405774181,1771294243852,-619.543,0.00025304,2]
[405774182,1771294243863,-1164.0,0.00025304,2]
[405774183,1771294243874,-1340.68,0.00025304,2]
[405774184,1771294243884,-3506.399,0.00025304,2]
[405774185,1771294243895,-49602.43398459,0.0002539,2]
[405774186,1771294243905,-1227.627,0.00025406,2]
[405774187,1771294243916,-5973.0,0.00025465,2]
[405774188,1771294243926,-2477.411,0.00025465,2]
[405774189,1771294243937,-414.156,0.00025465,2]
[405774190,1771294243947,-200.0,0.00025503,2]
[405774191,1771294243961,-15296.93137855,0.00025516,2]
[405774192,1771294243972,-3911.13,0.00025571,30]
[405774193,1771294243983,-315.07,0.00025759,7]
[405774194,1771294243994,-487.0,0.00025759,2]
[405774195,1771294244005,-487.0,0.00025759,2]
[405774196,1771294244016,-487.0,0.00025759,2]
[405774197,1771294244026,-487.0,0.00025759,2]
[405774198,1771294244042,-487.0,0.00025759,2]
[405774199,1771294244053,-487.0,0.00025759,2]
[405774200,1771294244063,-487.0,0.00025759,2]
[405774201,1771294244074,-487.0,0.00025759,2]
[405774202,1771294244085,-487.0,0.00025759,2]
[405774203,1771294244095,-487.0,0.00025759,2]
[405774204,1771294244106,-487.0,0.00025759,2]
[405774205,1771294244117,-487.0,0.00025759,2]
[405774206,1771294244128,-487.0,0.00025759,2]
[405774207,1771294244138,-487.0,0.00025759,2]
[405774208,1771294244149,-487.0,0.00025759,2]
[405774209,1771294244160,-487.0,0.00025759,2]
[405774210,1771294244171,-487.0,0.00025759,2]
[405774211,1771294244182,-487.0,0.00025759,2]
[405774212,1771294244194,-487.0,0.00025759,2]
[405774213,1771294244206,-487.0,0.00025759,2]
[405774214,1771294244217,-487.0,0.00025759,2]
[405774215,1771294244228,-523.88,0.00025759,2]
[405774216,1771294244240,-173.53171403,0.000258,30]
[405774217,1771294244251,-160.0,0.000258,30]
[405774218,1771294244263,-150.0,0.0002589,2]
[405774219,1771294244277,-502.0,0.00025948,10]
[405774220,1771294244288,-601.82892278,0.0002599,2]
[405774221,1771294244301,-4529.89531866,0.00026,2]
[405774222,1771294244312,-216.8208434,0.00026,2]
[405774223,1771294244324,-238.6,0.00026,7]
[405774224,1771294244336,-27519.04736847,0.000264,2]
[405774225,1771294244350,-200.0,0.00026496,14]
[405774226,1771294244361,-173.53171403,0.000265,30]
[405774227,1771294244373,-402994.46,0.000265,2]
[405774228,1771294244389,-160.57318336,0.00026604,2]
[405774229,1771294244400,-487.0,0.00026638,2]
[405774230,1771294244412,-487.0,0.00026638,2]
[405774231,1771294244424,-487.0,0.00026638,2]
[405774232,1771294244436,-487.0,0.00026638,2]
[405774233,1771294244447,-487.0,0.00026638,2]
[405774234,1771294244461,-487.0,0.00026638,2]
[405774235,1771294244474,-487.0,0.00026638,2]
[405774236,1771294244486,-487.0,0.00026638,2]
[405774237,1771294244499,-487.0,0.00026638,2]
[405774238,1771294244511,-487.0,0.00026638,2]
[405774239,1771294244522,-487.0,0.00026638,2]
[405774240,1771294244534,-487.0,0.00026638,2]
[405774241,1771294244545,-778.64,0.00026638,2]
[405774242,1771294244557,-360.38217355,0.00026667,30]
[405774243,1771294244568,-502.0,0.00026669,10]
[405774244,1771294244580,-302.0,0.000268,2]
[405774245,1771294244592,-840.0,0.000268,2]
[405774246,1771294244603,-500.0,0.00026852,120]
[405774247,1771294244614,-16400.5444896,0.00026879,2]
[405774248,1771294244626,-586.96513288,0.00026927,2]
[405774249,1771294244638,-162.380719,0.00026927,2]
[405774250,1771294244649,-254.77802588,0.00026927,2]
[405774251,1771294244661,-721.12765535,0.00026927,2]
[405774252,1771294244672,-250.0,0.00026927,2]
[405774253,1771294244684,-160.0,0.00026927,2]
[405774254,1771294244696,-250.0,0.00026927,2]
[405774255,1771294244709,-250.0,0.00026927,2]
[405774256,1771294244720,-250.0,0.00026927,2]
[405774257,1771294244732,-250.0,0.00026927,2]
[405774258,1771294244748,-481.39378118,0.00026927,2]
[405774259,1771294244759,-250.0,0.00026927,2]
[405774260,1771294244771,-250.0,0.00026927,2]
[405774261,1771294244782,-250.0,0.00026927,2]
[405774262,1771294244793,-250.0,0.00026927,2]
[405774263,1771294244805,-250.0,0.00026927,2]
[405774264,1771294244817,-250.0,0.00026927,2]
[405774265,1771294244828,-151.12957794,0.00026927,2]
[405774266,1771294244840,-177.7218892,0.00026927,2]
[405774267,1771294244852,-5000.0,0.00026927,2]
[405774268,1771294244863,-1099.28707761,0.00026927,2]
[405774269,1771294244875,-578.20924308,0.00026927,2]
[405774270,1771294244887,-3000.0,0.00026927,2]
[405774271,1771294244898,-3070.81608438,0.00026927,2]
[405774272,1771294244909,-151.0,0.00026927,2]
[405774273,1771294244922,-500.0,0.00026927,2]
[405774274,1771294244933,-151.0,0.00026927,2]
[405774275,1771294244944,-500.0,0.00026927,2]
[405774276,1771294244959,-151.0,0.00026927,2]
[405774277,1771294244971,-500.0,0.00026927,2]
[405774278,1771294244984,-209.40437684,0.00026927,2]
[405774279,1771294244995,-151.0,0.00026927,2]
[405774280,1771294245007,-500.0,0.00026927,2]
[405774281,1771294245019,-151.0,0.00026927,2]
[405774282,1771294245030,-500.0,0.00026927,2]
[405774283,1771294245041,-500.0,0.00026927,2]
[405774284,1771294245052,-151.0,0.00026927,2]
[405774285,1771294245063,-500.0,0.00026927,2]
[405774286,1771294245074,-151.0,0.00026927,2]
[405774287,1771294245085,-500.0,0.00026927,2]
[405774288,1771294245099,-261.90795033,0.00026927,2]
[405774289,1771294245111,-500.0,0.00026927,2]
[405774290,1771294245122,-500.0,0.00026927,2]
[405774291,1771294245133,-500.0,0.00026927,2]
[405774292,1771294245144,-250.0,0.00026927,2]
[405774293,1771294245154,-250.0,0.00026927,2]
[405774294,1771294245165,-250.0,0.00026927,2]
[405774295,1771294245175,-250.0,0.00026927,2]
[405774296,1771294245186,-250.0,0.00026927,2]
[405774297,1771294245196,-250.0,0.00026927,2]
[405774298,1771294245210,-250.0,0.00026927,2]
[405774299,1771294245220,-250.0,0.00026927,2]
[405774300,1771294245231,-250.0,0.00026927,2]
[405774301,1771294245243,-250.0,0.00026927,2]
[405774302,1771294245253,-250.0,0.00026927,2]
[405774303,1771294245266,-299.40346672,0.00026927,2]
[405774304,1771294245276,-279.55615727,0.00026927,2]
[405774305,1771294245290,-302.70619241,0.00026927,2]
[405774306,1771294245300,-253.83621088,0.00026927,2]
[405774307,1771294245312,-693.3919763,0.00026927,2]
[405774308,1771294245324,-250.0,0.00026927,2]
[405774309,1771294245346,-250.0,0.00026927,2]
[405774310,1771294245357,-250.0,0.00026927,2]
[405774311,1771294245368,-250.0,0.00026927,2]
[405774312,1771294245378,-250.0,0.00026927,2]
[405774313,1771294245389,-250.0,0.00026927,2]
[405774314,1771294245399,-250.0,0.00026927,2]
[405774315,1771294245410,-250.0,0.00026927,2]
[405774316,1771294245420,-250.0,0.00026927,2]
[405774317,1771294245431,-250.0,0.00026927,2]
[405774318,1771294245441,-250.0,0.00026927,2]
[405774319,1771294245453,-1094.1261757,0.00026974,2]
[405774320,1771294245463,-719.04747942,0.00026982,2]
[405774321,1771294245474,-250.0,0.00027,2]
[405774322,1771294245485,-1036.27587229,0.00027,2]
[405774323,1771294245496,-530.0,0.00027,2]
[405774324,1771294245507,-469.46689445,0.00027,30]
[405774325,1771294245519,-550.0,0.00027,2]
[405774326,1771294245530,-3927.266926,0.00027,2]
[405774327,1771294245541,-173.53171403,0.00027,3]
[405774328,1771294245552,-745.65223616,0.00027037,2]
[405774329,1771294245563,-118107.4465259,0.00027064,2]
[405774330,1771294245574,-773.2413689,0.00027092,2]
[405774333,1771294245585,-3695.39,0.00027123,2]
[405774335,1771294245596,-801.85129955,0.00027147,2]
[405774336,1771294245606,-150.0,0.00027185,2]
[405774337,1771294245617,-831.51979763,0.00027202,2]
[405774338,1771294245628,-862.28603014,0.00027257,2]
[405774339,1771294245639,-309.0,0.000273,2]
[405774340,1771294245650,-444.0,0.000273,2]
[405774341,1771294245661,-894.19061326,0.00027312,2]
[405774342,1771294245671,-927.27566595,0.00027367,2]
[405774343,1771294245682,-454.40279954,0.0002737,2]
[405774344,1771294245693,-244.67843052,0.0002737,2]
[405774345,1771294245704,-502.0,0.0002739,11]
[405774347,1771294245715,-4118.09039797,0.0002739,2]
[405774348,1771294245725,-8136.33870265,0.0002739,2]
[405774349,1771294245736,-570.48857796,0.0002739,120]
[405774350,1771294245746,-500.0,0.00027397,2]
[405774351,1771294245757,-500.0,0.00027397,2]
[405774352,1771294245767,-220.27357098,0.00027397,2]
[405774353,1771294245779,-1000.0,0.00027397,30]
[405774354,1771294245789,-1000.0,0.00027397,30]
[405774355,1771294246078,-1000.0,0.00027397,30]
[405774356,1771294246104,-1000.0,0.00027397,30]
[405774357,1771294246114,-1000.0,0.00027397,30]
[405774358,1771294246124,-1000.0,0.00027397,30]
[405774359,1771294246134,-274.16433771,0.00027397,30]
[405774360,1771294246145,-220.48493733,0.00027397,2]
[405774361,1771294246155,-2811.0,0.00027397,120]
[405774362,1771294246164,-500.0,0.00027397,120]
[405774363,1771294246175,-520.46,0.00027397,2]
[405774364,1771294246184,-834.15,0.00027397,2]
[405774365,1771294246194,-300.0,0.00027397,2]
[405774366,1771294246205,-961.58486559,0.00027422,2]
[405774367,1771294246215,-171.32508819,0.00027475,2]
[405774368,1771294246225,-997.16350561,0.00027477,2]
[405774369,1771294246235,-201.64882868,0.000275,2]
[405774370,1771294246244,-550.85874064,0.000275,2]
[405774371,1771294246254,-3691.0,0.000275,2]
[405774372,1771294246264,-406.69052902,0.00027599,2]
[405774373,1771294246278,-238.6,0.000277,7]
[405774374,1771294246288,-50963.81662959,0.00028,2]
[405774375,1771294246297,-160.0,0.00028,2]
[405774376,1771294246307,-160.0,0.00028,3]
[405774377,1771294246318,-402994.46,0.00028,2]
[405774378,1771294246328,-502.0,0.0002811,12]
[405774379,1771294246337,-1275.0,0.00028119,2]
[405774380,1771294246348,-150.0,0.00028119,2]
[405774381,1771294246358,-5000.0,0.00028243,2]
[405774382,1771294246368,-168.3888056,0.00028296,2]
[405774383,1771294246378,-160.32510575,0.00028296,2]
[405774384,1771294246388,-1155.18815172,0.00028297,120]
[405774385,1771294246398,-150.0,0.00028304,2]
[405774386,1771294246408,-150.0,0.00028304,2]
[405774387,1771294246419,-150.0,0.00028304,2]
[405774388,1771294246429,-150.0,0.00028304,2]
[405774389,1771294246439,-150.0,0.00028304,2]
[405774390,1771294246449,-150.0,0.00028304,2]
[405774391,1771294246459,-150.0,0.00028304,2]
[405774392,1771294246469,-150.0,0.00028304,2]
[405774393,1771294246479,-150.0,0.00028304,2]
[405774394,1771294246489,-150.0,0.00028304,2]
[405774395,1771294246499,-617.0,0.00028304,2]
[405774396,1771294246509,-1164.0,0.00028304,2]
[405774397,1771294246519,-1338.0,0.00028304,2]
[405774398,1771294246529,-3491.0,0.00028304,2]
[405774399,1771294246539,-150.73098705,0.00028308,5]
[405774400,1771294246549,-150.95186947,0.00028308,5]
[405774401,1771294246559,-151.26891317,0.00028308,5]
[405774402,1771294246569,-1209.0,0.00028406,2]
[405774403,1771294246578,-500.0,0.00028464,120]
[405774404,1771294246588,-5973.0,0.00028465,2]
[405774405,1771294246598,-2452.0,0.00028465,2]
[405774406,1771294246608,-150.0,0.00028544,2]
[405774407,1771294246618,-502.0,0.00028831,12]
[405774408,1771294246629,-360.38217355,0.00028889,30]
[405774409,1771294246639,-1619.66939418,0.00029,120]
[405774410,1771294246648,-1741.00786691,0.00029,2]
[405774411,1771294246658,-503.44925883,0.00029,2]
[405774412,1771294246668,-1930.66,0.000292,14]
[405774413,1771294246678,-3911.13,0.00029224,30]
[405774414,1771294246688,-16400.5444896,0.00029338,2]
[405774415,1771294246699,-315.07,0.00029518,30]
[405774416,1771294246710,-1094.1261757,0.00029526,2]
[405774417,1771294246719,-159.42,0.00029533,2]
[405774418,1771294246730,-502.0,0.00029552,13]
[405774419,1771294246739,-118107.4465259,0.00029585,2]
[405774420,1771294246749,-402994.46,0.000296,2]
[405774421,1771294246759,-3356.68916006,0.00029613,2]
[405774422,1771294246769,-168.19115038,0.00029665,2]
[405774423,1771294246779,-747.8093786,0.00029666,2]
[405774424,1771294246788,-599.60298507,0.00029666,2]
[405774425,1771294246799,-302.15,0.00029811,22]
[405774426,1771294246809,-70166.53092606,0.000299,2]
[405774427,1771294247764,-291.55820996,0.00011434,2]
[405774428,1771294247861,-4565.07623,0.00011434,2]
[405774430,1771294748160,1190.0,7.945e-05,2]
[405774432,1771294944742,-424.04,0.000108,2]